bitfinex/quotes_ETHUSD_20260312
["timestamp","ask_amount","ask_price","bid_price","bid_amount"]
[1773309352336,0.002,2056.2,2055.9,0.47601325]
[1773309352542,0.89602225,2056.1,2055.9,0.001]
[1773309355363,2.11193239,2056.1,2055.9,0.001]
[1773309355652,0.89602225,2056.0,2055.7,0.001]
[1773309358364,1.21601245,2055.9,2055.7,0.001]
[1773309358661,2.1120347,2055.9,2055.7,0.001]
[1773309359357,0.89602225,2055.9,2055.7,0.001]
[1773309360358,0.002,2055.8,2055.7,0.001]
[1773309360552,0.002,2056.0,2055.8,0.46476259]
[1773309360936,0.002,2056.2,2055.8,0.46276259]
[1773309363064,0.002,2056.2,2055.9,1.67607876]
[1773309364865,0.89802225,2056.2,2055.9,0.46006631]
[1773309365038,0.89802225,2056.2,2055.9,2.66206631]
[1773309365234,0.89802225,2056.2,2055.9,0.46006631]
[1773309366140,0.89602225,2056.1,2055.7,0.001]
[1773309366345,0.89602225,2056.1,2055.7,1.67297905]
[1773309366651,0.89602225,2056.1,2055.7,0.45685337]
[1773309367046,0.89602225,2056.0,2055.7,0.45685337]
[1773309367543,2.11198035,2056.0,2055.7,0.45685337]
[1773309367742,0.89602225,2055.9,2055.7,0.001]
[1773309369545,2.11209385,2055.8,2055.7,0.001]
[1773309369853,0.89602225,2055.8,2055.7,0.001]
[1773309375282,0.89602225,2055.7,2055.5,0.001]
[1773309375472,0.89602225,2055.5,2055.3,0.001]
[1773309377254,0.89602225,2055.4,2055.3,0.001]
[1773309378768,0.89602225,2055.4,2055.0,0.001]
[1773309378971,0.89602225,2055.3,2055.0,0.001]
[1773309379577,0.89602225,2055.1,2055.0,0.001]
[1773309380371,1.21638653,2055.3,2055.0,0.001]
[1773309380575,0.91030575,2055.3,2055.0,0.43468304]
[1773309380877,0.91030575,2055.3,2055.0,0.001]
[1773309381600,2.12671045,2055.3,2055.0,0.001]
[1773309382203,0.91030575,2055.2,2055.0,0.001]
[1773309384097,2.12674278,2055.2,2055.0,0.001]
[1773309384699,0.91030575,2055.2,2055.0,0.001]
[1773309385004,0.91230575,2055.2,2055.0,0.001]
[1773309386196,1.21843705,2055.2,2054.8,1.64379016]
[1773309386403,2.1287428,2055.2,2054.8,1.64379016]
[1773309386914,0.002,2055.2,2054.9,0.42449084]
[1773309388180,0.002,2055.2,2054.9,2.62449084]
[1773309388609,0.002,2055.2,2055.0,1.21654501]
[1773309388826,0.002,2055.2,2055.0,1.63769306]
[1773309390588,0.002,2055.4,2055.3,0.4178042]
[1773309393010,0.91030575,2055.3,2054.9,3.83113311]
[1773309394686,0.91030575,2055.3,2055.0,2.201]
[1773309395131,0.91030575,2055.3,2055.0,2.61221987]
[1773309395919,0.91030575,2055.2,2054.9,1.21660062]
[1773309396221,0.91030575,2055.2,2055.0,2.201]
[1773309397201,0.91030575,2055.2,2054.8,2.60993375]
[1773309397921,2.12673237,2055.2,2055.1,0.001]
[1773309398717,0.91030575,2055.2,2055.1,0.001]
[1773309399021,0.002,2055.3,2055.1,0.47024248]
[1773309406428,0.002,2055.3,2055.1,0.001]
[1773309409132,0.85268935,2055.3,2055.1,0.001]
[1773309414941,0.002,2055.3,2055.1,0.001]
[1773309417458,0.002,2055.3,2055.1,0.43675886]
[1773309417754,0.002,2055.4,2055.2,0.43375886]
[1773309417955,0.91725952,2055.6,2055.2,0.43375886]
[1773309418339,2.13345759,2055.6,2055.2,0.43375886]
[1773309421251,0.91725952,2055.6,2055.2,1.65012723]
[1773309421862,0.91725952,2055.6,2055.3,0.4270375]
[1773309422833,0.91725952,2055.6,2055.2,1.21636837]
[1773309423033,0.91725952,2055.6,2055.2,1.64171618]
[1773309423437,0.91725952,2055.6,2055.2,1.64271618]
[1773309423661,0.002,2055.4,2055.2,1.64271618]
[1773309428042,0.002,2055.4,2055.3,0.41690753]
[1773309428232,0.002,2055.6,2055.4,0.41690753]
[1773309428435,0.002,2055.6,2055.5,0.41523119]
[1773309429776,0.91525952,2055.8,2055.5,0.41361712]
[1773309429942,0.91525952,2055.8,2055.5,1.62984928]
[1773309430973,0.91525952,2055.8,2055.5,0.41361712]
[1773309431172,0.91525952,2055.8,2055.5,1.62986411]
[1773309431375,0.91525952,2055.8,2055.5,1.62986269]
[1773309433971,0.91725952,2055.9,2055.5,1.62986269]
[1773309436075,0.91725952,2055.9,2055.6,2.212]
[1773309437149,0.002,2056.0,2055.8,0.40318629]
[1773309438155,0.002,2055.9,2055.8,0.40318629]
[1773309438359,0.002,2056.0,2055.8,0.40318629]
[1773309440398,0.91725952,2056.2,2055.9,1.21601245]
[1773309440563,0.002,2056.3,2056.0,3.26630967]
[1773309440944,0.87358158,2056.3,2056.0,3.26630967]
[1773309443178,0.87358158,2056.3,2056.0,4.48223654]
[1773309445682,0.87358158,2056.3,2056.0,4.48135575]
[1773309445849,0.87358158,2056.3,2056.0,4.08798308]
[1773309447461,0.87358158,2056.3,2055.8,2.219]
[1773309447462,0.87158158,2056.2,2055.8,2.219]
[1773309449285,0.87158158,2056.2,2055.8,2.87605621]
[1773309450005,0.87158158,2056.2,2055.8,4.09207144]
[1773309450482,0.002,2056.1,2056.0,0.001]
[1773309450683,0.87358158,2056.1,2056.0,0.001]
[1773309451467,0.002,2056.1,2056.0,0.001]
[1773309455997,0.002,2056.1,2056.0,2.224]
[1773309456583,0.002,2056.3,2056.1,0.35829765]
[1773309458403,1e-08,2056.4,2056.1,0.35829765]
[1773309458694,0.002,2056.5,2056.2,0.84056279]
[1773309459081,2.08925155,2056.5,2056.2,0.84056279]
[1773309459775,0.87358158,2056.5,2056.2,0.84056279]
[1773309460298,2.08923969,2056.5,2056.2,0.84056279]
[1773309460487,0.87358158,2056.5,2056.2,2.0563972]
[1773309462297,0.87358158,2056.5,2056.2,0.84056279]
[1773309462501,0.87358158,2056.5,2056.2,2.05639677]
[1773309463582,0.87358158,2056.5,2056.2,2.05739677]
[1773309463783,0.002,2056.3,2056.2,2.05739677]
[1773309463975,0.87358158,2056.5,2056.2,2.05739677]
[1773309467201,0.87358158,2056.5,2056.2,2.71445298]
[1773309468219,0.002,2056.6,2056.4,1.46612079]
[1773309468415,0.002,2056.7,2056.5,0.80906458]
[1773309469088,2.02908223,2057.0,2056.6,1.46612079]
[1773309469294,2.02908223,2057.0,2056.6,2.024632]
[1773309469295,2.02909818,2057.0,2056.6,2.024632]
[1773309469978,0.81371585,2057.0,2056.6,2.024632]
[1773309470178,2.02911185,2057.0,2056.6,0.80906458]
[1773309470505,0.81371585,2057.0,2056.7,0.65705621]
[1773309470706,1.2153111,2057.1,2056.8,0.87419807]
[1773309471276,2.06481865,2057.1,2056.8,0.87419807]
[1773309474499,2.06481865,2057.1,2056.7,0.65705621]
[1773309474807,2.06481865,2057.1,2056.7,1.53125428]
[1773309475501,0.84950755,2057.0,2056.7,2.231]
[1773309476419,0.84950755,2057.0,2056.7,2.88805621]
[1773309476713,0.84950755,2057.0,2056.7,3.76225428]
[1773309477718,2.06488297,2057.0,2056.7,3.76325428]
[1773309478015,0.002,2056.8,2056.7,3.76325428]
[1773309478220,2.06488297,2057.0,2056.7,3.76325428]
[1773309478589,2.06688297,2057.0,2056.7,3.76325428]
[1773309479814,0.85150755,2057.0,2056.7,3.76325428]
[1773309480581,2.06688575,2057.0,2056.7,3.76325428]
[1773309480787,0.85150755,2057.0,2056.7,3.76325428]
[1773309480984,0.85150755,2057.0,2056.7,0.001]
[1773309481213,0.84950755,2056.9,2056.7,0.001]
[1773309485395,2.06492911,2056.9,2056.7,0.001]
[1773309486716,0.84950755,2056.8,2056.7,0.001]
[1773309487018,0.84950755,2056.9,2056.7,0.001]
[1773309487217,0.85150755,2057.0,2056.7,0.001]
[1773309488221,2.06687421,2057.0,2056.7,0.001]
[1773309488621,0.85150755,2057.0,2056.7,0.87519807]
[1773309489324,2.06687239,2057.0,2056.7,0.87519807]
[1773309490223,0.84950755,2056.9,2056.7,0.001]
[1773309491093,0.002,2056.8,2056.7,0.001]
[1773309494229,0.002,2056.8,2056.7,0.87519807]
[1773309497741,0.002,2056.8,2056.7,0.001]
[1773309501731,0.80769915,2056.8,2056.5,0.001]
[1773309502049,0.80769915,2056.8,2056.4,0.001]
[1773309502833,0.80569915,2056.6,2056.0,0.001]
[1773309503016,0.80569915,2056.6,2056.1,0.20793036]
[1773309504048,0.80569915,2056.4,2056.1,0.20793036]
[1773309505847,0.80569915,2056.4,2056.1,0.20893036]
[1773309506139,0.80569915,2056.3,2056.1,0.20893036]
[1773309506369,0.80569915,2056.3,2055.9,1.21595966]
[1773309506543,0.80569915,2055.9,2055.5,0.001]
[1773309506862,0.80569915,2055.9,2055.5,6.08308543]
[1773309508135,0.80569915,2055.7,2055.5,6.08308543]
[1773309510260,0.80569915,2055.6,2055.5,6.08308543]
[1773309511331,0.80569915,2056.0,2055.6,0.81374431]
[1773309511557,0.80569915,2056.2,2055.8,0.81374431]
[1773309512354,5.51981184,2056.5,2055.8,0.81374431]
[1773309512355,2.02159331,2056.1,2055.8,0.81374431]
[1773309512562,0.80569915,2056.0,2055.6,1.21614918]
[1773309512755,0.80569915,2056.0,2055.6,3.45914918]
[1773309513142,0.80569915,2056.0,2055.6,4.27289349]
[1773309513371,0.80569915,2056.0,2055.7,6.08208543]
[1773309514466,0.80569915,2056.0,2055.7,7.2982148]
[1773309515262,0.80569915,2056.0,2055.7,6.08208543]
[1773309515466,0.80569915,2056.0,2055.8,6.08208543]
[1773309515669,0.80569915,2056.0,2055.7,6.08208543]
[1773309515841,1.21596275,2056.0,2055.7,6.08208543]
[1773309516162,0.80569915,2055.9,2055.7,6.08208543]
[1773309516959,0.80569915,2055.9,2055.6,4.27291305]
[1773309517137,0.80569915,2055.9,2055.7,6.08208543]
[1773309518372,0.002,2055.8,2055.6,4.27291305]
[1773309518580,0.002,2055.8,2055.7,6.08208543]
[1773309519138,0.002,2056.0,2055.8,0.81374431]
[1773309519468,2.02350979,2056.3,2055.9,0.81374431]
[1773309519668,2.02350979,2056.3,2055.9,6.89582974]
[1773309520170,0.80569915,2056.2,2055.9,6.89582974]
[1773309521053,2.02153726,2056.2,2055.9,6.89582974]
[1773309521461,0.80569915,2056.2,2055.9,6.89582974]
[1773309522275,2.02136391,2056.5,2056.1,0.81374431]
[1773309522444,0.002,2056.8,2056.5,0.81374431]
[1773309522648,1.21748316,2056.8,2056.5,0.81374431]
[1773309523149,2.17292194,2056.8,2056.5,0.81374431]
[1773309525675,2.17292194,2056.8,2056.5,6.89582974]
[1773309525676,0.95743878,2056.8,2056.5,6.89582974]
[1773309525881,0.95543878,2056.7,2056.5,6.08208543]
[1773309527387,0.95543878,2056.7,2056.4,0.98216911]
[1773309527553,0.95543878,2056.7,2056.5,6.08208543]
[1773309528283,2.17101321,2056.7,2056.5,6.08208543]
[1773309529775,0.95543878,2056.6,2056.0,0.98216911]
[1773309529978,0.95543878,2056.6,2056.0,5.45390896]
[1773309530693,1.03381887,2056.4,2056.0,5.45390896]
[1773309532096,1.03381887,2056.4,2055.9,0.001]
[1773309532282,1.03381887,2056.4,2056.0,5.45390896]
[1773309533159,1.03381887,2056.2,2056.1,5.45390896]
[1773309533354,1.21769614,2056.5,2056.2,1.05980891]
[1773309533559,1.21769614,2056.5,2056.3,1.05980891]
[1773309533760,0.002,2056.5,2056.3,5.45390896]
[1773309533994,1.21754394,2056.7,2056.5,1.05980891]
[1773309534896,1.21754394,2056.7,2056.3,8.76271787]
[1773309535060,1.21754394,2056.7,2056.4,5.45390896]
[1773309536098,1.21754394,2056.7,2056.4,6.51371787]
[1773309536466,0.002,2056.7,2056.5,6.51371787]
[1773309536661,0.002,2056.7,2056.5,1.05980891]
[1773309537610,0.42274562,2056.7,2056.5,5.45390896]
[1773309538281,1.63834296,2056.7,2056.5,5.45390896]
[1773309541092,1.21759734,2056.7,2056.5,5.45390896]
[1773309541511,0.002,2056.7,2056.6,5.45390896]
[1773309542094,0.002,2056.7,2056.5,1.05980891]
[1773309544014,0.002,2056.7,2056.4,1.05980891]
[1773309544176,0.002,2056.5,2056.4,1.05980891]
[1773309549715,0.002,2056.7,2056.4,1.05980891]
[1773309556246,0.002,2057.0,2056.6,1.05980891]
[1773309556452,0.002,2057.1,2057.0,1.05980891]
[1773309560033,0.002,2057.1,2056.8,1.21543902]
[1773309560034,0.002,2057.1,2056.9,1.05980891]
[1773309562370,1.21515504,2057.4,2057.1,1.1164045]
[1773309562530,2.11181558,2057.5,2057.1,1.1164045]
[1773309562848,1.76276542,2057.3,2056.9,1.1164045]
[1773309563022,0.54758047,2057.2,2056.9,1.1164045]
[1773309564217,0.54758047,2057.2,2056.6,0.001]
[1773309564858,0.54352957,2057.0,2056.6,1.1174045]
[1773309565032,1.21530309,2057.1,2056.7,1.1164045]
[1773309565624,1.75678569,2057.1,2056.7,1.1164045]
[1773309566444,0.5414826,2057.0,2056.7,1.1164045]
[1773309567431,1.75688942,2057.0,2056.7,1.1164045]
[1773309570367,1.75688942,2057.0,2056.9,0.001]
[1773309572637,0.52607661,2056.9,2056.6,1.1174045]
[1773309572859,0.52607661,2056.9,2056.6,2.33299403]
[1773309574167,0.52607661,2056.9,2056.6,1.1174045]
[1773309574356,1.74149999,2056.9,2056.6,1.1174045]
[1773309582072,0.50755954,2056.8,2056.4,0.001]
[1773309582238,0.50755954,2056.8,2056.4,1.21671407]
[1773309583277,0.50755954,2056.8,2056.4,2.24986118]
[1773309583652,0.002,2056.7,2056.4,2.24986118]
[1773309583871,0.002,2056.7,2056.5,0.001]
[1773309584044,0.002,2056.7,2056.5,1.03414711]
[1773309586866,0.002,2056.7,2056.5,0.001]
[1773309587770,0.002,2056.7,2056.5,1.03414711]
[1773309588263,0.002,2056.7,2056.5,0.001]
[1773309589685,0.49361175,2056.7,2056.5,0.001]
[1773309592258,1.70918389,2056.7,2056.5,0.001]
[1773309593185,0.48591635,2056.6,2056.4,0.001]
[1773309594391,1.70156735,2056.6,2056.4,0.001]
[1773309596488,4.86430393,2056.7,2056.4,0.001]
[1773309596489,0.47875852,2056.5,2056.4,0.001]
[1773309597894,0.48075852,2056.5,2056.4,0.001]
[1773309598264,1.69641619,2056.5,2056.4,0.001]
[1773309601708,0.002,2057.1,2056.5,1.07769621]
[1773309602000,1.6837891,2057.0,2056.6,1.07769621]
[1773309602162,1.0460471,2056.9,2056.4,0.001]
[1773309602706,1.0460471,2056.7,2056.4,1.07869621]
[1773309603591,1.21740171,2057.0,2056.5,1.07769621]
[1773309603768,1.0460471,2056.9,2056.5,1.07769621]
[1773309604703,1.21740171,2057.0,2056.6,1.07769621]
[1773309605105,2.26341502,2057.0,2056.6,1.07769621]
[1773309605484,1.0460471,2056.9,2056.5,1.07769621]
[1773309607015,1.0460471,2056.9,2056.5,2.29332684]
[1773309607431,1.0460471,2056.9,2056.6,1.07769621]
[1773309607890,2.26147004,2056.9,2056.6,1.07769621]
[1773309608093,2.26147227,2056.9,2056.6,1.07769621]
[1773309610126,2.26147227,2056.9,2056.7,0.001]
[1773309611001,2.26347227,2056.9,2056.7,0.001]
[1773309613921,1.0480471,2056.9,2056.7,0.001]
[1773309615028,4.86077404,2057.3,2056.7,0.001]
[1773309615029,1.75,2058.9,2057.2,0.72616396]
[1773309615274,2.259,2058.5,2058.2,1.07769621]
[1773309615433,1.0460471,2058.4,2057.4,1.07769621]
[1773309615611,1.0460471,2058.3,2057.5,1.07769621]
[1773309615807,0.65675767,2058.1,2057.5,1.07769621]
[1773309616006,1.0460471,2057.9,2057.2,1.07769621]
[1773309616732,1.0460471,2057.7,2057.2,1.07769621]
[1773309617134,1.0460471,2057.7,2057.3,1.21518495]
[1773309617331,1.0460471,2057.7,2057.2,2.29289533]
[1773309617836,1.0460471,2057.7,2057.3,1.07769621]
[1773309618243,2.259,2057.6,2057.3,1.07769621]
[1773309618407,1.0460471,2058.5,2057.7,1.07769621]
[1773309618739,1.0460471,2058.5,2057.8,1.07769621]
[1773309619033,4.8574343,2058.8,2058.2,1.07769621]
[1773309619237,1.21429959,2058.8,2058.2,1.07769621]
[1773309619438,1.70280477,2058.5,2057.8,1.07769621]
[1773309619739,1.21429959,2058.8,2057.5,1.07769621]
[1773309619740,0.65675767,2058.3,2057.5,1.07769621]
[1773309620106,1.0460471,2058.2,2057.5,1.07769621]
[1773309620623,1.10035652,2058.0,2057.5,1.07769621]
[1773309620826,1.10035652,2058.0,2057.5,0.93225859]
[1773309621009,1.21488968,2057.8,2057.3,1.18577341]
[1773309621338,1.50258367,2058.9,2057.8,1.18577341]
[1773309621541,2.31465611,2058.8,2058.0,1.18577341]
[1773309621708,1.10035652,2058.7,2058.0,1.18577341]
[1773309622207,2.71685647,2058.9,2058.2,1.18577341]
[1773309622406,1.36369486,2058.8,2058.2,1.18577341]
[1773309622729,1.10035652,2058.7,2058.0,1.18577341]
[1773309622931,1.36369486,2058.7,2058.0,1.18577341]
[1773309623142,1.21441756,2058.6,2058.0,2.40048676]
[1773309623311,1.21641756,2058.6,2058.0,2.40048676]
[1773309623638,1.21641756,2058.6,2058.1,1.18577341]
[1773309624339,1.21641756,2058.6,2058.1,1.09091361]
[1773309625236,1.21641756,2058.6,2057.9,5.51607759]
[1773309625237,2.57818994,2058.5,2057.9,1.18577341]
[1773309625438,1.10035652,2058.3,2057.8,2.267]
[1773309625737,1.47783342,2058.5,2057.5,4.86112316]
[1773309625738,1.10035652,2057.9,2057.5,0.001]
[1773309626108,0.26333834,2057.8,2057.5,0.001]
[1773309626339,1.36369486,2057.8,2057.5,0.001]
[1773309627128,1.10035652,2057.9,2057.3,0.001]
[1773309627333,2.31522391,2057.9,2057.3,0.001]
[1773309630109,1.21486739,2057.9,2057.3,0.001]
[1773309630344,1.10035652,2057.8,2057.3,0.001]
[1773309631944,2.31524856,2057.8,2057.3,0.001]
[1773309632154,2.31524856,2057.8,2057.3,1.18677341]
[1773309632316,0.26233834,2057.7,2057.3,1.18677341]
[1773309633444,0.26233834,2057.6,2057.3,1.18677341]
[1773309633631,1.21487,2057.9,2057.4,2.40089929]
[1773309633828,0.26233834,2057.8,2057.4,2.40089929]
[1773309634842,0.26233834,2057.7,2057.5,1.18577341]
[1773309635041,1.10035652,2057.9,2057.5,1.18577341]
[1773309635212,1.36269486,2057.9,2057.3,1.18677341]
[1773309635413,1.36269486,2057.8,2057.3,0.001]
[1773309635745,1.10035652,2057.5,2056.8,1.2154454]
[1773309636249,1.10035652,2057.3,2056.7,2.40226916]
[1773309637410,1.36269486,2057.2,2056.7,0.001]
[1773309637615,1.10035652,2057.0,2056.7,0.001]
[1773309640728,0.26233834,2056.9,2056.7,0.001]
[1773309642465,0.26233834,2056.9,2056.7,1.18677341]
[1773309643365,0.26233834,2056.9,2056.7,0.001]
[1773309643526,0.26233834,2056.8,2056.7,0.001]
[1773309643725,0.26233834,2056.8,2056.5,0.001]
[1773309643726,1.35979491,2056.8,2056.5,0.001]
[1773309644353,1.21553945,2056.7,2056.5,0.001]
[1773309644521,2.31299602,2056.7,2056.5,0.001]
[1773309644931,1.09745657,2056.7,2056.5,0.001]
[1773309648353,0.26233834,2056.6,2056.5,0.001]
[1773309648724,1.4779369,2056.6,2056.5,0.001]
[1773309648926,0.26233834,2056.6,2056.5,0.001]
[1773309649331,1.4779369,2056.6,2056.5,0.001]
[1773309649529,2.31304251,2056.7,2056.5,0.001]
[1773309649752,0.26233834,2056.6,2056.5,0.001]
[1773309650661,0.002,2058.1,2057.7,1.10870693]
[1773309650860,2.38082703,2058.4,2057.7,1.10870693]
[1773309651061,2.38080277,2058.4,2057.7,1.10870693]
[1773309651952,0.002,2057.8,2057.7,1.10870693]
[1773309652153,2.38080277,2058.4,2057.7,1.10870693]
[1773309652463,0.002,2058.1,2057.7,1.10870693]
[1773309652790,0.002,2058.1,2057.9,1.10870693]
[1773309653163,0.38964364,2058.5,2057.9,1.10870693]
[1773309654140,0.38964364,2058.5,2057.8,1.21488968]
[1773309654141,1.16626495,2058.4,2057.8,1.21488968]
[1773309654743,2.34403585,2059.9,2058.6,1.10870693]
[1773309655048,1.16626495,2059.8,2058.9,1.10870693]
[1773309656854,1.16626495,2059.6,2058.7,3.46633317]
[1773309658171,1.16626495,2059.5,2058.7,2.252]
[1773309658394,1.16626495,2059.5,2058.6,1.21441309]
[1773309658665,1.1777709,2059.9,2059.7,1.10870693]
[1773309658834,2.37943028,2060.8,2059.8,5.01243485]
[1773309659041,0.93474238,2060.7,2059.9,1.10870693]
[1773309659238,0.93474238,2060.7,2060.0,2.74943485]
[1773309659446,4.85188484,2061.1,2060.0,2.74943485]
[1773309659447,1.16626495,2061.3,2060.4,1.64072792]
[1773309659641,6.01760297,2061.3,2060.4,1.64072792]
[1773309659841,0.93474238,2061.2,2060.4,1.64072792]
[1773309660299,2.10100733,2061.1,2060.2,3.37670693]
[1773309660471,1.16626495,2061.1,2060.2,3.37670693]
[1773309660654,2.10100733,2061.2,2060.3,1.10870693]
[1773309660854,3.31395187,2061.1,2060.4,1.21335662]
[1773309661593,2.14768692,2061.1,2060.4,1.21335662]
[1773309661761,1.16626495,2061.6,2060.4,3.96279147]
[1773309661944,1.16626495,2061.6,2060.5,1.10870693]
[1773309662146,1.16626495,2061.3,2060.4,1.21335662]
[1773309662539,1.16626495,2061.3,2060.3,1.21337099]
[1773309662870,2.10100733,2061.2,2060.2,4.59713604]
[1773309663072,1.16626495,2061.0,2060.1,1.21349618]
[1773309663380,1.16626495,2061.0,2059.9,8.6039714]
[1773309663546,1.16626495,2060.8,2059.9,3.49062806]
[1773309663741,1.16626495,2060.8,2059.9,1.21362806]
[1773309663971,1.64072792,2061.0,2059.6,2.74943485]
[1773309663972,1.16626495,2060.5,2059.6,2.32249413]
[1773309664174,0.93474238,2060.7,2059.6,2.32249413]
[1773309664175,1.16626495,2060.7,2059.6,3.96322205]
[1773309664549,1.16626495,2060.7,2059.6,2.32249413]
[1773309664753,1.16626495,2060.7,2059.6,4.60349413]
[1773309664947,1.21323886,2060.6,2059.6,4.60349413]
[1773309665278,2.37950381,2060.6,2059.6,4.60349413]
[1773309665481,2.37950381,2060.6,2059.6,4.60549413]
[1773309665648,2.10100733,2060.5,2059.6,4.60549413]
[1773309665974,2.10100733,2060.5,2059.6,2.32249413]
[1773309666175,0.93474238,2060.4,2059.9,1.64072792]
[1773309666485,2.38136967,2060.9,2059.9,1.64072792]
[1773309666660,0.93474238,2060.8,2059.8,1.10870693]
[1773309667264,0.93474238,2060.7,2059.9,2.85437906]
[1773309667959,1.16626495,2060.5,2059.8,1.21367117]
[1773309668166,0.93474238,2060.7,2059.9,1.10870693]
[1773309668342,0.002,2060.9,2059.9,1.10870693]
[1773309668343,1.21313176,2060.8,2059.9,1.10870693]
[1773309668549,2.37939671,2060.8,2059.9,1.10870693]
[1773309668762,2.37939671,2060.8,2059.9,1.15725297]
[1773309669487,2.37939671,2060.8,2059.7,1.21376899]
[1773309669488,1.16626495,2060.6,2059.7,1.21376899]
[1773309670182,2.10100733,2060.5,2059.7,1.26231974]
[1773309670378,1.16626495,2060.5,2059.7,1.26231974]
[1773309671147,0.93474238,2060.4,2059.7,1.26231974]
[1773309671866,1.21341552,2060.3,2059.7,1.26231974]
[1773309672470,0.93474238,2060.2,2059.7,1.26231974]
[1773309672661,1.16626495,2060.1,2059.5,1.21386318]
[1773309672860,2.10100733,2060.1,2059.5,1.21386318]
[1773309673580,2.10100733,2060.1,2059.4,1.21390223]
[1773309673784,0.93474238,2060.0,2059.4,1.21390223]
[1773309673980,0.93474238,2060.0,2059.0,1.64072792]
[1773309673981,2.37991609,2059.9,2059.0,1.10870693]
[1773309674281,2.37991609,2059.9,2059.1,4.85641752]
[1773309674282,3.31465847,2059.9,2059.1,4.85641752]
[1773309674489,0.93474238,2059.8,2059.1,7.15541752]
[1773309674721,0.93474238,2059.8,2058.6,4.85765424]
[1773309674722,1.16626495,2059.2,2058.0,1.21471259]
[1773309674857,2.80699287,2059.0,2058.0,1.21471259]
[1773309675059,1.16626495,2059.0,2058.1,3.26354551]
[1773309675382,1.16626495,2059.0,2058.2,3.31213165]
[1773309675383,0.49971037,2058.9,2058.2,3.31213165]
[1773309675784,0.49971037,2058.8,2058.3,3.26354551]
[1773309675959,1.16626495,2059.3,2058.4,0.04858142]
[1773309676158,1.71377408,2059.2,2058.5,1.21447656]
[1773309676386,1.71377408,2059.2,2058.6,0.0485767]
[1773309677170,1.71377408,2059.2,2058.5,1.26305326]
[1773309677491,0.49971037,2059.1,2058.6,3.26354551]
[1773309678062,0.49971037,2059.0,2058.5,1.26305326]
[1773309678370,2.38032866,2059.2,2058.5,1.26305326]
[1773309678371,0.49971037,2059.1,2058.6,3.26354551]
[1773309679104,1.71383304,2059.1,2058.6,3.26354551]
[1773309679479,0.49971037,2059.0,2058.5,1.21447619]
[1773309679714,1.16626495,2059.0,2058.5,1.21447619]
[1773309680193,1.16626495,2059.0,2058.4,0.001]
[1773309680510,0.49971037,2058.9,2058.4,0.001]
[1773309682502,0.49971037,2058.8,2058.4,0.001]
[1773309684506,1.71402339,2058.8,2058.4,0.001]
[1773309684699,0.49971037,2058.8,2058.4,0.001]
[1773309685401,0.49971037,2058.7,2058.4,1.33339625]
[1773309685578,2.55011915,2059.1,2058.5,0.04857906]
[1773309685903,0.49971037,2059.0,2058.4,1.33339625]
[1773309687401,1.71393325,2059.0,2058.5,1.21447656]
[1773309687897,11.26255286,2059.5,2058.6,1.33239625]
[1773309687898,1.33595105,2059.4,2058.6,1.33239625]
[1773309688103,0.49971037,2059.4,2058.6,1.33239625]
[1773309688290,1.33595105,2059.3,2058.6,1.33239625]
[1773309689292,1.21406371,2059.2,2058.6,2.54676234]
[1773309689604,3.04972513,2059.2,2058.6,1.21440671]
[1773309689800,1.33595105,2059.0,2058.4,0.001]
[1773309690001,1.33595105,2058.9,2058.1,0.001]
[1773309690207,1.33595105,2058.8,2058.1,1.21569417]
[1773309691108,1.33595105,2058.8,2058.1,1.26428267]
[1773309691307,1.33595105,2058.6,2058.1,0.001]
[1773309692013,1.33595105,2058.6,2058.3,0.001]
[1773309692213,0.49971037,2058.5,2058.3,0.001]
[1773309692378,1.83566142,2058.5,2058.3,0.001]
[1773309692578,1.33595105,2058.4,2058.3,0.001]
[1773309692774,1.33595105,2058.4,2058.1,0.001]
[1773309692978,0.49871037,2058.3,2058.1,0.001]
[1773309693207,0.49871037,2058.3,2057.9,1.21582423]
[1773309693478,1.71338861,2058.2,2057.7,1.21490923]
[1773309693673,0.49871037,2058.2,2057.7,1.21490923]
[1773309693876,0.49871037,2058.2,2057.8,0.04859558]
[1773309694296,0.49871037,2058.2,2057.7,1.21490923]
[1773309697845,1.71336412,2058.2,2057.7,1.21490923]
[1773309697998,0.49871037,2058.2,2057.7,1.21490923]
[1773309698396,1.21466097,2058.2,2057.6,4.86138038]
[1773309698708,0.49871037,2058.1,2057.6,4.86138038]
[1773309699007,0.49871037,2058.1,2057.6,1.21500572]
[1773309699206,2.55061202,2058.2,2057.4,1.21511945]
[1773309699207,1.33595105,2057.9,2057.4,1.21511945]
[1773309699406,1.33595105,2057.9,2056.7,0.066536]
[1773309699407,1.33595105,2057.9,2057.0,1.33239625]
[1773309699607,1.33595105,2057.7,2057.0,4.86071665]
[1773309699779,1.33595105,2057.7,2057.0,1.2153392]
[1773309699982,1.33595105,2057.7,2057.0,1.26395368]
[1773309700516,2.5509037,2057.7,2057.0,1.26395368]
[1773309701085,1.33595105,2057.6,2057.0,1.26395368]
[1773309701784,1.21495265,2057.7,2057.0,2.59634993]
[1773309702110,0.49871037,2057.6,2057.1,1.33239625]
[1773309702786,1.21493387,2057.8,2057.2,1.21524402]
[1773309702987,1.21493387,2057.8,2057.3,0.11715223]
[1773309703202,1.21493387,2057.8,2057.2,2.26872787]
[1773309704298,0.49871037,2057.7,2057.1,1.21528404]
[1773309704494,1.29464854,2057.6,2057.1,1.21528404]
[1773309705585,0.49871037,2057.7,2057.1,2.26790064]
[1773309705785,0.49871037,2057.6,2057.1,2.26790064]
[1773309706115,0.49871037,2057.7,2057.2,1.10122636]
[1773309706413,0.49871037,2057.8,2057.2,1.10122636]
[1773309706711,0.49871037,2057.8,2057.3,0.001]
[1773309706917,1.90813097,2057.8,2057.1,1.21528404]
[1773309707216,0.49871037,2057.7,2057.2,0.04860976]
[1773309707412,0.49871037,2057.7,2057.3,1.21518495]
[1773309708323,1.4094206,2057.5,2057.0,0.001]
[1773309708525,1.4094206,2057.5,2057.0,1.21636078]
[1773309709202,1.90813097,2057.4,2057.0,0.001]
[1773309709414,1.4094206,2057.4,2057.0,1.21635745]
[1773309711616,0.47727092,2057.3,2057.0,1.23778397]
[1773309711822,4.61046523,2057.6,2057.0,1.23778397]
[1773309712122,0.47727092,2057.5,2057.0,1.23778397]
[1773309713523,1.89741125,2057.4,2057.0,1.21635745]
[1773309713702,0.04760991,2057.3,2057.0,0.001]
[1773309714506,0.47727092,2057.2,2057.0,0.001]
[1773309716603,0.47727092,2057.1,2057.0,0.001]
[1773309716809,1.46775024,2057.4,2057.0,0.001]
[1773309719353,0.16513787,2057.3,2057.0,0.001]